bitfinex-derivatives/quotes_ETHF0:USTF0_20260113
["timestamp","ask_amount","ask_price","bid_price","bid_amount"]
[1768330742393,1.1907541,3202.1,3201.0,0.15627]
[1768330743201,1.1907541,3202.1,3201.0,1.19728649]
[1768330743892,1.04101649,3201.9,3201.0,0.15627]
[1768330744890,0.14973761,3202.0,3201.0,0.15627]
[1768330745089,1.1907541,3202.0,3201.0,0.15627]
[1768330745993,0.13702103,3201.9,3201.0,0.15627]
[1768330750096,1.04101649,3201.7,3201.0,0.15627]
[1768330750702,1.04570289,3201.7,3201.0,0.15627]
[1768330754902,1.04101649,3201.5,3201.0,0.15627]
[1768330755107,1.04101649,3201.5,3200.8,0.00311777]
[1768330755600,1.04101649,3201.5,3200.4,1.04101649]
[1768330756599,0.0046864,3201.7,3200.6,0.15629]
[1768330756600,1.04101649,3201.3,3200.6,0.15629]
[1768330756804,1.04480431,3201.3,3200.6,0.15629]
[1768330757308,0.00378782,3201.3,3200.6,0.15629]
[1768330758212,0.00378782,3201.3,3200.8,0.15628]
[1768330760010,0.14197787,3201.3,3200.8,0.15628]
[1768330760409,0.00378782,3201.3,3200.8,0.15628]
[1768330764401,0.14197787,3201.3,3200.7,0.0046864]
[1768330764802,0.14197787,3201.3,3200.4,0.00382672]
[1768330767016,0.14197787,3201.3,3200.5,0.0046864]
[1768330767714,0.14197787,3201.3,3200.8,0.15628]
[1768330767915,0.14197787,3201.3,3200.5,0.0046864]
[1768330769010,0.00378782,3201.3,3200.6,0.15629]
[1768330770118,0.00378782,3201.3,3200.6,0.13977157]
[1768330770310,0.13819005,3202.5,3201.1,1.04224374]
[1768330770613,0.13819005,3202.5,3200.7,1.18201531]
[1768330771316,0.13819005,3202.5,3201.5,0.15625]
[1768330771317,0.00346369,3202.5,3201.5,0.15625]
[1768330771504,6.4e-06,3201.9,3201.3,1.18201531]
[1768330771705,0.00346369,3202.5,3201.3,0.13977157]
[1768330772506,1.416,3203.4,3202.0,0.15622]
[1768330772710,1.55419005,3203.4,3202.0,0.15622]
[1768330773018,1.04224374,3203.3,3202.0,0.15622]
[1768330773408,1.04467642,3203.3,3202.0,0.15622]
[1768330773809,1.04467642,3203.3,3202.3,0.0046864]
[1768330774613,0.00243268,3203.3,3202.3,0.0046864]
[1768330775618,0.00243268,3203.3,3202.4,0.1562]
[1768330793134,0.00243268,3203.3,3202.5,0.1562]
[1768330796525,0.0046864,3203.2,3202.5,0.1562]
[1768330800531,0.00243268,3203.3,3202.3,0.14710191]
[1768330800725,3.126,3203.6,3202.8,0.15619]
[1768330801125,1.413,3204.0,3202.9,0.15618]
[1768330801322,0.13635605,3204.1,3202.9,0.15618]
[1768330801523,0.13635605,3204.1,3203.3,0.15616]
[1768330801727,0.13635605,3204.0,3202.9,0.00227313]
[1768330802225,0.14104245,3203.8,3202.9,0.00227313]
[1768330802723,0.13635605,3203.4,3202.3,0.0046864]
[1768330802927,0.13635605,3203.1,3202.3,0.0046864]
[1768330803127,0.13635605,3202.8,3201.4,3.90649865]
[1768330803325,0.13323105,3202.8,3201.7,1.04224374]
[1768330803731,0.13323105,3202.8,3201.7,1.0454991]
[1768330803925,1.413,3203.2,3202.0,0.15622]
[1768330804332,1.413,3203.2,3202.3,0.0046864]
[1768330804734,0.0046864,3203.8,3202.6,0.1562]
[1768330805327,0.14269811,3203.7,3202.6,0.1562]
[1768330805928,0.14269811,3203.7,3202.4,1.04224374]
[1768330806122,0.0046864,3203.8,3202.9,0.15618]
[1768330806326,0.0046864,3203.8,3202.7,1.04224374]
[1768330806327,0.0046864,3203.8,3203.0,0.15618]
[1768330814330,0.14738451,3203.8,3203.0,0.15618]
[1768330814938,0.14269811,3203.5,3202.4,0.1562]
[1768330815536,0.0046864,3203.8,3202.7,0.15619]
[1768330815843,0.0046864,3203.8,3202.8,0.15619]
[1768330816241,0.0046864,3203.8,3203.0,0.15617]
[1768330818942,0.14041147,3203.6,3203.0,0.15617]
[1768330819340,0.0046864,3203.8,3203.0,0.15617]
[1768330822350,0.14509787,3203.8,3203.0,0.15617]
[1768330823552,0.0046864,3203.8,3203.0,0.15617]
[1768330825759,1.18572452,3203.8,3203.0,0.15617]
[1768330826056,1.18103812,3203.6,3203.0,0.15617]
[1768330826254,0.14041147,3203.6,3203.0,0.15617]
[1768330827653,1.18103812,3203.6,3202.5,1.04062665]
[1768330827956,0.14041147,3203.5,3202.5,1.04062665]
[1768330828250,0.14041147,3203.5,3202.5,1.19682665]
[1768330828859,0.14041147,3203.5,3202.6,0.1562]
[1768330830459,0.14041147,3203.5,3202.7,1.04062665]
[1768330830860,0.0046864,3203.8,3202.7,1.04062665]
[1768330831058,0.0046864,3203.8,3202.7,1.19681665]
[1768330831450,0.0046864,3203.8,3203.1,1.04062665]
[1768330831653,0.0046864,3203.8,3203.3,1.04062665]
[1768330831856,0.00354546,3204.1,3203.1,1.19679665]
[1768330832255,0.14395693,3204.1,3203.1,1.19679665]
[1768330832455,0.14395693,3204.1,3203.1,0.15617]
[1768330832650,0.14041147,3203.5,3203.1,0.15617]
[1768330832850,0.14041147,3203.5,3202.6,0.15619]
[1768330833965,0.14041147,3203.5,3202.7,0.15619]
[1768330837066,1.18553908,3203.4,3202.7,0.15619]
[1768330837663,0.14491243,3203.4,3202.7,0.15619]
[1768330838168,0.14491243,3203.9,3202.8,1.19681665]
[1768330838571,0.14491243,3203.9,3203.0,1.04062665]
[1768330838864,0.00354546,3204.1,3203.2,1.04062665]
[1768330839066,0.00354546,3204.1,3203.2,0.15617]
[1768330839463,1.04417211,3204.1,3203.2,0.15617]
[1768330840776,1.18908454,3204.1,3203.2,0.15617]
[1768330841472,0.14845789,3204.1,3203.2,0.15617]
[1768330841968,0.14845789,3204.1,3203.3,0.15616]
[1768330842174,0.14845789,3204.1,3203.4,1.19678665]
[1768330842581,0.14845789,3204.1,3203.4,0.15616]
[1768330843876,0.14491243,3204.5,3203.7,1.04062665]
[1768330844076,0.14491243,3204.1,3203.6,0.15615]
[1768330844771,0.14491243,3204.6,3203.7,1.19676665]
[1768330845073,0.14491243,3205.0,3204.4,1.04062665]
[1768330845472,0.02159926,3205.2,3204.8,1.04062665]
[1768330845677,3.26891243,3205.4,3204.6,1.04062665]
[1768330846177,0.14755551,3205.4,3204.6,1.04319868]
[1768330846878,0.14755551,3205.4,3204.6,0.00257203]
[1768330847376,1.18818216,3205.4,3204.6,0.00257203]
[1768330847581,0.14491243,3204.9,3203.9,0.15613]
[1768330847881,0.14491243,3204.7,3203.9,0.15613]
[1768330848069,1.18553908,3204.7,3203.9,0.15613]
[1768330848265,0.14491243,3204.6,3203.9,0.15613]
[1768330848481,0.14491243,3204.6,3204.0,1.04062665]
[1768330848774,0.14491243,3205.2,3204.2,1.04062665]
[1768330849971,0.14491243,3204.8,3204.0,0.00334062]
[1768330851481,0.65,3204.7,3200.9,11.19728367]
[1768330851677,1.18553908,3204.0,3202.2,1.04062665]
[1768330851882,1.04062665,3203.3,3202.5,0.1562]
[1768330852381,0.14491243,3203.8,3202.5,4.06269865]
[1768330852584,0.14491243,3203.8,3202.5,0.15859326]
[1768330852788,1.04062665,3203.6,3202.5,0.15859326]
[1768330852985,1.04062665,3203.6,3202.8,0.0046864]
[1768330853186,0.14491243,3203.8,3202.8,0.0046864]
[1768330855186,0.14491243,3203.8,3202.8,3.91118505]
[1768330855583,0.865,3203.9,3203.1,3.90649865]
[1768330856185,0.14491243,3204.3,3203.1,3.90649865]
[1768330856386,0.14491243,3204.3,3202.8,0.0046864]
[1768330856687,0.14491243,3204.3,3202.9,3.90649865]
[1768330857083,0.14491243,3204.3,3203.2,0.15616]
[1768330857288,3.123,3204.6,3203.0,3.90649865]
[1768330858280,1.411,3204.8,3203.2,0.14282283]
[1768330858588,1.411,3204.8,3203.7,0.15614]
[1768330860485,4.68255551,3205.4,3203.8,0.15614]
[1768330860789,0.0046864,3204.9,3203.8,0.15614]
[1768330861786,0.0046864,3204.9,3203.5,1.52208137]
[1768330861991,0.14491243,3204.8,3203.4,0.15616]
[1768330862780,0.14491243,3204.8,3203.5,0.15615]
[1768330863380,0.14491243,3204.8,3203.6,0.15614]
[1768330863584,0.14491243,3204.8,3203.6,4.06263865]
[1768330864893,0.14491243,3204.8,3203.6,0.15614]
[1768330865097,0.14491243,3204.8,3203.6,4.06263865]
[1768330865980,0.14491243,3204.8,3203.7,0.15614]
[1768330866180,0.0046864,3204.9,3203.8,0.15614]
[1768330866381,0.0046864,3204.9,3204.2,0.15612]
[1768330867382,0.0046864,3204.9,3204.4,0.15611]
[1768330867581,4.53764308,3205.4,3204.4,0.15611]
[1768330868989,4.53764308,3205.4,3204.6,0.0046864]
[1768330869593,0.1344562,3205.3,3204.6,0.0046864]
[1768330869790,0.1344562,3205.0,3203.7,0.15614]
[1768330870799,1.52208137,3204.7,3202.5,0.14445521]
[1768330870987,0.1344562,3204.6,3202.5,0.14445521]
[1768330871186,0.0046864,3203.9,3203.3,0.15616]
[1768330872088,0.0046864,3203.9,3203.4,0.15616]
[1768330872288,10.325,3204.9,3203.6,0.15615]
[1768330872497,0.1344562,3205.0,3203.6,0.15615]
[1768330872691,1.52208137,3204.9,3203.6,0.15615]
[1768330872892,0.1344562,3204.8,3203.6,0.15615]
[1768330873293,0.1344562,3204.8,3202.5,0.00239326]
[1768330873499,0.1344562,3204.4,3203.0,0.15618]
[1768330873695,0.1344562,3204.2,3203.0,0.15618]
[1768330873900,0.1344562,3204.2,3203.1,3.90649865]
[1768330874098,0.1344562,3204.2,3203.4,0.0046864]
[1768330874295,0.1344562,3204.2,3203.0,0.15618]
[1768330874296,0.1344562,3203.9,3203.0,0.15618]
[1768330874501,0.1344562,3203.9,3203.2,3.90649865]
[1768330874889,0.1344562,3203.9,3203.0,0.15618]
[1768330875086,0.0046864,3204.0,3203.3,3.90649865]
[1768330875298,0.0046864,3204.0,3203.0,4.06267865]
[1768330875800,0.1391426,3204.0,3203.3,3.90649865]
[1768330876192,0.1391426,3204.0,3203.0,0.15618]
[1768330876397,0.0046864,3204.0,3203.3,3.90649865]
[1768330877602,0.1505322,3204.0,3203.3,3.90649865]
[1768330878492,0.1505322,3204.0,3203.4,3.90649865]
[1768330878691,1.411,3204.3,3203.4,3.60920386]
[1768330878894,1.411,3204.3,3203.0,0.15618]
[1768330879198,1.411,3204.3,3203.2,3.60920386]
[1768330879393,1.411,3204.3,3202.5,0.00239326]
[1768330879594,3.123,3204.2,3202.7,3.60920386]
[1768330880399,3.123,3204.2,3203.1,0.0046864]
[1768330881896,3.123,3204.2,3202.5,0.00239326]
[1768330882099,0.0046864,3204.0,3202.6,3.60920386]
[1768330883199,0.0046864,3204.0,3202.7,0.13937023]
[1768330883398,0.0046864,3204.0,3202.9,0.13937023]
[1768330883805,0.0046864,3204.0,3203.1,0.13937023]
[1768330884002,0.0046864,3204.0,3203.3,3.60920386]
[1768330885202,0.0046864,3204.0,3203.0,0.15618]
[1768330885398,0.0046864,3204.0,3203.3,3.60920386]
[1768330890815,6.1608164,3204.0,3202.6,0.13937023]
[1768330891018,0.15613,3203.9,3202.6,0.13937023]
[1768330891712,0.0046864,3204.0,3202.6,0.13937023]
[1768330891915,0.0046864,3204.0,3202.7,0.13937023]
[1768330892418,0.0046864,3204.0,3202.9,0.13937023]
[1768330895209,3.123,3204.2,3203.3,0.1332491]
[1768330896218,3.123,3204.2,3202.7,0.1332491]
[1768330896619,3.123,3204.2,3203.4,0.0046864]
[1768330897521,3.123,3204.2,3203.1,0.1332491]
[1768330897913,0.0046864,3204.1,3203.1,0.1332491]
[1768330898114,0.0046864,3204.1,3202.7,0.15619]
[1768330899318,0.0046864,3204.1,3202.7,0.2894391]
[1768330899513,0.0046864,3204.1,3202.8,0.1332491]
[1768330900423,0.35370449,3204.0,3202.8,0.1332491]
[1768330900618,0.0046864,3204.1,3202.8,0.1332491]
[1768330900822,0.35370441,3204.0,3202.8,0.1332491]
[1768330901118,0.0046864,3204.1,3202.8,0.1332491]
[1768330901314,0.35378264,3204.0,3202.8,0.1332491]
[1768330901516,0.0046864,3204.1,3202.8,0.1332491]
[1768330901826,0.35379024,3204.0,3202.8,0.1332491]
[1768330902021,0.3537957,3203.9,3202.8,0.1332491]
[1768330902323,0.35389349,3203.8,3202.5,0.00239326]
[1768330902515,2.23513985,3203.7,3202.5,0.00239326]
[1768330902716,0.35389349,3203.6,3202.5,0.00239326]
[1768330902916,1.413,3203.5,3202.5,0.00239326]
[1768330906021,0.35390024,3203.4,3202.5,0.00239326]
[1768330906226,1.413,3203.5,3202.5,0.00239326]
[1768330906429,0.35385328,3203.4,3202.5,0.00239326]
[1768330906619,1.413,3203.5,3202.5,0.00239326]
[1768330906821,0.35385353,3203.4,3202.5,0.00239326]
[1768330907020,1.413,3203.5,3202.5,0.00239326]
[1768330907221,0.35382041,3203.4,3202.5,0.00239326]
[1768330907520,1.413,3203.5,3202.5,0.00239326]
[1768330907719,0.35382824,3203.4,3201.7,0.1332491]
[1768330907917,1.413,3203.5,3201.7,0.2894891]
[1768330908221,0.35382812,3203.4,3201.8,0.1332491]
[1768330908426,0.0046864,3202.9,3201.8,0.1332491]
[1768330908621,0.00759784,3202.9,3201.8,0.13601541]
[1768330910234,0.00759784,3202.9,3201.8,0.29224541]
[1768330910532,0.00759784,3202.9,3201.9,0.1332491]
[1768330911225,0.00759784,3202.9,3201.9,0.2894791]
[1768330911425,0.00759784,3202.9,3202.0,0.1332491]
[1768330920134,0.00759784,3202.9,3200.3,4.85010636]
[1768330920135,0.00759784,3202.9,3201.3,0.15626]
[1768330921138,0.00759784,3202.9,3201.3,0.1596532]
[1768330922225,0.00759784,3202.9,3201.5,0.1332491]
[1768330923631,0.00759784,3202.9,3201.5,0.2894991]
[1768330925837,0.00759784,3202.9,3201.6,0.13504737]
[1768330929330,0.00759784,3202.9,3201.6,0.29128737]
[1768330929536,0.00759784,3202.9,3201.7,0.13504737]
[1768330937851,1.7327042,3202.9,3200.8,0.14496529]
[1768330938150,0.14287823,3202.7,3200.7,0.15629]
[1768330938359,1.76718306,3202.6,3200.7,0.15629]
[1768330938534,0.35418306,3202.5,3200.7,0.15629]
[1768330938740,0.35418306,3202.4,3200.7,0.15629]
[1768330939048,1.55587823,3202.6,3200.7,0.15942115]
[1768330939249,0.14287823,3202.4,3200.7,0.15942115]
[1768330939745,0.35407855,3202.3,3200.7,0.15942115]
[1768330939944,0.14287823,3202.4,3200.7,0.30438644]
[1768330941347,1.52413596,3202.2,3200.7,0.30438644]
[1768330942148,1.52413596,3202.2,3200.7,0.14809644]
[1768330942342,1.52413596,3201.8,3200.7,0.00313115]
[1768330942543,4.542,3201.7,3200.7,0.00313115]
[1768330942736,4.542,3201.7,3200.3,0.14496529]
[1768330942737,1.52413596,3201.4,3200.3,0.14496529]
[1768330943342,4.542,3201.7,3200.3,0.14496529]
[1768330943649,0.0046864,3201.2,3200.3,0.14860462]
[1768330947164,1.52413596,3201.0,3199.9,0.14496529]
[1768330947343,1.416,3200.9,3199.9,0.14496529]
[1768330948256,1.416,3200.9,3199.9,0.14870186]
[1768330948957,1.416,3200.9,3199.9,0.00373657]
[1768330949255,1.416,3200.9,3199.2,0.14496529]
[1768330950157,1.416,3200.9,3199.2,0.14853103]
[1768330950554,1.52413596,3200.6,3199.3,0.15636]
[1768330950759,3.126,3200.5,3199.2,0.00356574]
[1768330951255,4.542,3200.4,3199.2,0.00356574]
[1768330951560,4.542,3200.4,3199.5,0.14496529]
[1768330952056,1.41948706,3200.6,3199.6,0.14496529]
[1768330953662,1.41948706,3200.6,3199.5,0.15635]
[1768330954161,1.41948706,3200.6,3199.2,0.00356574]
[1768330954455,1.52413596,3200.3,3199.2,0.00356574]
[1768330958150,1.56236529,3200.6,3199.2,0.00356574]
[1768330959962,1.66379612,3200.3,3199.2,0.00356574]
[1768330960159,1.41948706,3200.6,3199.2,0.00356574]
[1768330960361,1.416,3200.5,3199.2,0.29439767]
[1768330961455,1.52413596,3200.4,3199.2,0.15992574]
[1768330961654,1.416,3200.5,3199.2,0.15992574]
[1768330961655,3.07979612,3200.5,3199.2,0.15992574]
[1768330963068,3.07979612,3200.5,3199.2,0.00356574]
[1768330963366,0.13966016,3200.4,3199.2,0.00356574]
[1768330963566,1.52413596,3200.1,3199.2,0.00356574]
[1768330967365,0.00348706,3200.6,3199.2,0.13803767]
[1768330967569,1.415,3200.5,3199.2,0.13803767]
[1768330967765,1.415,3200.5,3199.4,0.15635]
[1768330968561,1.415,3200.5,3199.4,0.29082193]
[1768330968768,1.415,3200.5,3199.5,0.15635]
[1768330968964,1.415,3200.5,3199.5,0.29082193]
[1768330969271,1.415,3200.4,3199.5,0.29082193]
[1768330970068,2.93913596,3200.4,3199.2,0.00356574]
[1768330970469,3.07879612,3200.4,3199.2,0.00356574]
[1768330970665,0.13966016,3200.3,3199.2,0.00356574]
[1768330971774,2.93913596,3200.4,3198.5,0.1564]
[1768330971775,0.13966016,3199.9,3198.5,0.1564]
[1768330972477,0.0046864,3199.5,3198.5,0.1564]
[1768330972666,1.415,3199.4,3198.5,0.1586702]
[1768330973569,0.0046864,3199.5,3198.5,0.1586702]
[1768330973767,0.0046864,3199.5,3198.6,0.13447193]
[1768330974475,0.0046864,3199.5,3198.8,0.15638]
[1768330974783,0.87206069,3199.6,3198.8,0.15638]
[1768330976079,0.87206069,3199.6,3198.9,0.0046864]
[1768330978676,0.87674709,3199.6,3198.9,0.0046864]
[1768330979278,0.13966016,3199.5,3198.5,0.0022702]
[1768330980782,0.13966016,3199.5,3198.7,0.0046864]
[1768330981684,0.87674709,3199.6,3198.7,0.0046864]
[1768330981876,0.0046864,3199.6,3198.8,0.15638]
[1768330982083,0.13966016,3199.9,3198.9,0.15637]
[1768330982382,3.26766016,3200.4,3198.8,1.52413596]
[1768330982587,3.26766016,3200.4,3198.7,6.0046864]
[1768330982980,0.13966016,3200.3,3198.7,0.1610764]
[1768330983597,0.0046864,3199.8,3198.7,0.1610764]
[1768330983796,0.14434656,3199.8,3198.7,0.1610764]
[1768330984993,0.13715774,3199.5,3198.7,0.0046864]
[1768330985197,0.13715774,3199.5,3198.4,1.04983114]
[1768330985795,0.13715774,3199.5,3198.4,0.80727472]
[1768330986301,0.13715774,3199.1,3198.4,0.00228567]
[1768330986793,0.13715774,3199.1,3197.5,0.15644]
[1768330987698,0.13715774,3199.1,3197.5,0.15993464]
[1768330991404,0.13715774,3199.1,3197.7,0.15643]
[1768330991899,0.13715774,3199.0,3197.7,0.15643]
[1768330993200,0.13715774,3198.6,3197.5,0.00349464]
[1768330993503,0.13715774,3198.4,3197.5,0.00349464]
[1768330996609,0.13715774,3198.4,3197.5,0.15994464]
[1768330999107,1.416,3198.5,3197.7,0.15644]
[1768330999502,0.13788513,3198.4,3197.7,0.15644]
[1768331001110,1.416,3198.5,3197.8,0.15643]
[1768331001305,0.13788513,3198.9,3197.8,0.15643]
[1768331001507,0.13788513,3198.7,3197.8,0.15643]
[1768331001902,0.13788513,3198.7,3198.0,0.15642]
[1768331002107,1.415,3198.8,3198.0,0.15642]
[1768331002313,0.13788513,3198.7,3198.0,0.0046864]
[1768331003009,1.415,3198.8,3198.0,0.0046864]
[1768331004112,0.13788513,3198.7,3198.0,0.0046864]
[1768331007518,0.13788513,3198.7,3197.5,0.15993464]
[1768331014819,0.35458247,3198.6,3197.5,0.00349464]
[1768331015129,0.14026474,3198.5,3197.5,0.00349464]
[1768331015830,0.14026474,3198.3,3197.5,0.00349464]
[1768331016021,0.14404071,3198.3,3197.5,0.00349464]
[1768331021735,0.14026474,3198.1,3197.5,0.00349464]
[1768331022223,0.14026474,3198.1,3197.0,0.15647]
[1768331022423,0.14495114,3198.1,3197.0,0.15647]
[1768331023027,0.14495114,3198.1,3196.4,0.1565]
[1768331023331,0.14026474,3197.4,3196.4,0.15951353]
[1768331023729,0.14026474,3197.4,3196.5,0.15649]
[1768331025931,0.14026474,3197.2,3196.4,0.00301353]
[1768331026133,0.14026474,3197.1,3196.4,0.00301353]
[1768331026828,0.14026474,3197.1,3195.9,0.15652]
[1768331027022,0.14026474,3197.1,3196.0,0.15652]
[1768331027634,0.14026474,3197.1,3196.0,0.15917234]
[1768331027836,0.14026474,3196.9,3196.0,0.15917234]
[1768331028031,0.14026474,3196.8,3196.0,0.15917234]
[1768331028335,0.14026474,3196.8,3196.0,0.00265234]
[1768331028536,0.14026474,3196.5,3195.4,0.15655]
[1768331029133,0.14026474,3196.2,3195.4,0.15655]
[1768331029429,0.14026474,3196.2,3195.4,0.00288578]
[1768331029828,0.14026474,3196.1,3195.4,0.00288578]
[1768331030740,1.419,3196.2,3195.4,0.00288578]
[1768331031050,1.419,3196.2,3195.5,0.15654]
[1768331031336,0.0046864,3196.3,3195.5,0.15654]
[1768331034843,0.0046864,3196.3,3195.6,0.15654]
[1768331036252,1.419,3196.7,3195.9,0.15652]
[1768331036451,3.13,3196.9,3195.9,0.15652]
[1768331036745,3.13,3196.9,3196.0,0.15652]
[1768331036940,3.13,3196.9,3196.2,0.15651]
[1768331037132,1.418,3197.3,3196.2,0.15651]
[1768331037330,1.418,3197.3,3196.3,0.1565]
[1768331037634,0.0046864,3197.1,3195.5,0.02141833]
[1768331037837,3.131,3197.7,3195.4,6.00288578]
[1768331037838,3.131,3197.7,3196.6,0.15649]
[1768331038339,0.00377597,3198.3,3196.8,0.15648]
[1768331038646,0.14026474,3198.2,3197.0,0.15647]
[1768331040253,0.14026474,3198.2,3197.2,0.15646]
[1768331041033,0.14026474,3198.2,3196.2,0.01317696]
[1768331041244,0.00377597,3198.3,3197.4,0.15645]
[1768331041743,0.00377597,3198.3,3197.5,0.0046864]
[1768331043239,0.00377597,3198.3,3197.5,0.1611364]
[1768331043634,0.00377597,3198.3,3197.7,0.15643]
[1768331043839,0.14026474,3198.7,3197.7,0.00223977]
[1768331044039,0.14026474,3199.1,3198.2,0.15641]
[1768331044845,0.1438576,3199.1,3198.2,0.15641]
[1768331048255,0.1438576,3199.1,3197.7,0.00223977]
[1768331050553,0.1438576,3199.1,3197.9,0.15642]
[1768331053643,0.1438576,3199.1,3197.7,0.00223977]
[1768331054662,0.14373512,3198.5,3196.8,0.15648]
[1768331054849,0.14373512,3198.3,3196.8,0.15648]
[1768331055052,0.14373512,3198.1,3196.8,0.15648]
[1768331055851,0.14373512,3198.1,3196.8,0.159049]
[1768331056052,0.14373512,3198.1,3197.1,0.0046864]
[1768331057455,0.14373512,3198.1,3197.1,0.1611464]
[1768331060257,0.14373512,3198.1,3197.2,0.15646]
[1768331064158,1.416,3198.2,3197.5,0.15644]
[1768331065851,1.55327172,3198.2,3197.5,0.15644]
[1768331066052,0.13727172,3198.1,3197.5,0.15644]
[1768331066760,1.416,3198.2,3197.6,0.15644]
[1768331066966,0.13727172,3198.6,3197.6,0.15644]
[1768331067266,1.55527172,3198.6,3197.6,0.15644]
[1768331068367,0.13727172,3198.5,3197.6,0.15644]
[1768331069478,1.418,3198.6,3197.1,0.0046864]
[1768331069761,0.13727172,3198.5,3197.7,0.15643]
[1768331072664,0.13727172,3198.5,3197.1,0.1611464]
[1768331083390,1.04458838,3197.7,3197.1,0.1611464]
[1768331083587,1.04458838,3197.5,3197.1,0.1611464]
[1768331084294,1.04458838,3197.5,3196.8,0.002569]
[1768331084791,1.18229133,3197.5,3197.1,0.15646]
[1768331085084,0.13770295,3197.5,3196.8,0.002569]
[1768331085483,0.13770295,3197.5,3197.1,0.15646]
[1768331085683,1.18229133,3197.5,3196.8,0.002569]
[1768331086082,0.13770295,3197.5,3196.8,0.002569]
[1768331086686,0.13770295,3197.5,3197.1,0.15646]
[1768331087791,0.13770295,3197.5,3196.8,0.002569]
[1768331087995,0.13770295,3197.2,3196.8,0.002569]
[1768331088199,0.13770295,3197.2,3196.1,1.04458838]
[1768331088492,0.13770295,3197.2,3196.4,0.1565]
[1768331088994,0.0046864,3197.0,3196.4,0.1565]
[1768331089193,0.0046864,3197.0,3196.4,0.16012072]
[1768331089795,0.0046864,3197.0,3196.6,0.15649]
[1768331092191,0.13770295,3197.6,3196.7,0.15648]
[1768331092391,0.13770295,3197.6,3196.8,1.04458838]
[1768331093401,0.13770295,3197.6,3196.6,1.04458838]
[1768331093601,0.13770295,3197.6,3196.9,0.15647]
[1768331093794,1.04458838,3197.9,3196.9,0.15647]
[1768331094399,1.04458838,3197.7,3196.9,0.15647]
[1768331095403,1.18229133,3197.9,3197.0,0.15647]
[1768331096203,1.04458838,3197.8,3197.0,0.15647]
[1768331098104,0.13770295,3197.9,3197.1,0.15646]
[1768331099196,1.04458838,3198.3,3197.3,0.15645]
[1768331099406,1.04458838,3198.3,3197.4,0.15645]
[1768331099601,0.13770295,3198.4,3197.4,0.15645]
[1768331100205,0.13770295,3198.4,3196.8,1.04458838]
[1768331100508,0.13770295,3198.8,3198.1,1.04458838]
[1768331100811,0.13770295,3198.8,3197.7,1.20101838]
[1768331101002,1.18229133,3198.8,3197.7,1.20101838]
[1768331101202,1.18229133,3198.6,3197.7,0.15643]
[1768331101698,1.18229133,3198.6,3196.7,3.9170684]
[1768331101699,1.18229133,3198.2,3197.0,1.04458838]
[1768331101898,1.04458838,3198.0,3197.1,0.15646]
[1768331102098,1.04458838,3198.0,3197.3,0.0046864]
[1768331102505,0.13770295,3198.2,3197.3,0.0046864]
[1768331103615,0.13770295,3198.6,3197.6,1.20102838]
[1768331104208,1.04458838,3198.5,3197.6,0.15644]
[1768331104410,1.18229133,3198.5,3197.6,0.15644]
[1768331105603,0.13672438,3197.6,3197.3,0.0046864]
[1768331105808,1.18131276,3197.7,3197.0,0.15647]
[1768331106010,1.04458838,3198.4,3196.0,1.04458838]
[1768331106011,1.04458838,3197.2,3196.1,1.04458838]
[1768331106212,0.13672438,3197.3,3196.1,1.04458838]
[1768331106409,1.04458838,3197.2,3196.5,0.15649]
[1768331107113,0.13672438,3197.3,3196.5,0.15649]
[1768331107314,1.18131276,3197.2,3196.5,0.15649]
[1768331107510,0.13672438,3197.1,3196.5,0.1611764]
[1768331108104,0.13672438,3197.1,3196.5,0.0046864]
[1768331108416,0.13672438,3197.5,3196.6,0.15649]
[1768331109312,1.04458838,3197.2,3196.6,0.15649]
[1768331109510,0.13672438,3197.1,3196.6,0.15649]
[1768331113607,0.13672438,3196.9,3196.0,0.15652]
[1768331114008,0.13672438,3196.9,3195.3,0.15655]
[1768331114413,0.13672438,3196.5,3195.3,0.15655]
[1768331114816,0.14059979,3196.5,3195.3,0.15909078]
[1768331115008,0.13672438,3196.4,3195.3,0.15909078]
[1768331118314,0.13672438,3196.4,3195.3,0.00254078]
[1768331118516,0.13672438,3196.4,3195.5,0.15654]
[1768331122725,0.13672438,3196.4,3195.3,0.00254078]
[1768331125126,0.13672438,3196.4,3195.0,0.15657]
[1768331126330,0.13672438,3196.4,3195.0,0.16042628]
[1768331126730,0.13672438,3196.4,3195.0,0.00385628]
[1768331127133,0.13672438,3196.4,3195.4,0.15655]
[1768331128327,0.13672438,3196.4,3195.0,0.00385628]
[1768331128528,0.00387541,3196.5,3195.9,0.15652]
[1768331130623,0.14839497,3197.2,3196.1,0.15651]
[1768331131834,0.15098631,3197.2,3196.1,0.15651]
[1768331132134,0.15098631,3197.2,3195.0,0.00385628]
[1768331132331,0.15098631,3197.2,3195.6,0.15654]
[1768331132937,0.15098631,3197.2,3195.8,0.15653]
[1768331134333,0.15098631,3197.2,3196.0,0.15652]
[1768331134538,0.15098631,3197.2,3196.1,0.15651]
[1768331134833,0.15098631,3197.2,3196.2,0.15651]
[1768331135038,0.15098631,3197.2,3196.4,0.1565]
[1768331135242,0.00727774,3197.2,3196.6,0.15649]
[1768331135936,3.131,3197.5,3196.6,0.15649]
[1768331136130,0.13617674,3197.6,3196.7,0.15648]
[1768331136938,0.13849432,3197.6,3196.7,0.15648]
[1768331137438,0.13849432,3197.6,3196.8,0.0046938]
[1768331138039,0.13849432,3197.6,3196.8,0.1611738]
[1768331139134,0.00231758,3197.6,3196.8,0.0046938]
[1768331139337,0.13617674,3198.6,3196.8,6.0046938]
[1768331139642,0.13617674,3198.6,3196.8,0.0046938]
[1768331140032,0.13617674,3198.6,3197.3,0.15645]
[1768331140236,0.14000181,3198.6,3197.3,0.15937768]
[1768331145238,0.13617674,3198.4,3196.8,0.0046938]
[1768331146039,0.13617674,3198.4,3196.8,0.00841636]
[1768331146945,0.13617674,3198.4,3196.9,0.15647]
[1768331147845,0.13617674,3198.4,3197.1,0.15646]
[1768331148242,0.13617674,3198.4,3197.2,0.15646]
[1768331150046,0.13617674,3198.4,3197.3,0.15645]
[1768331150741,0.13617674,3198.4,3196.8,0.00841636]
[1768331150742,0.13617674,3198.4,3197.4,0.15645]
[1768331150941,0.13617674,3198.4,3197.5,0.15644]
[1768331151139,0.00382507,3198.6,3197.5,0.15644]
[1768331151335,0.00382507,3198.6,3197.8,0.15643]
[1768331151940,0.00382507,3198.6,3197.9,0.15642]
[1768331152149,0.0046938,3198.5,3197.9,0.15642]
[1768331152543,0.00382507,3198.6,3196.9,0.01212299]
[1768331152747,1.411,3199.2,3198.2,0.15641]
[1768331153250,0.37736674,3198.9,3198.2,0.15641]